[Event "Early-Titled-Tuesday-Blitz-February-20-2024"]
[Site "Chess.com"]
[Date "2024.02.20"]
[Round "4"]
[White "Kgutierrez95"]
[Black "morozcoma"]
[Result "1-0"]
[WhiteElo "2135"]
[BlackElo "2270"]
[TimeControl "180+1"]
[EndTime "8:37:47 PST"]
[Termination "Kgutierrez95 won on time"]

1. e4 {[%clk 0:03:00.9]} 1... e5 {[%clk 0:02:58.9]} 2. Nf3 {[%clk 0:03:00.5]}
2... Nc6 {[%clk 0:02:44.6]} 3. Bb5 {[%clk 0:03:01.1]} 3... Nge7 {[%clk 0:02:44]}
4. Qe2 {[%clk 0:02:59.7]} 4... g6 {[%clk 0:02:43.4]} 5. c3 {[%clk 0:02:59.3]}
5... Bg7 {[%clk 0:02:43.9]} 6. O-O {[%clk 0:02:57.2]} 6... a6 {[%clk 0:02:43.4]}
7. Ba4 {[%clk 0:02:56.8]} 7... O-O {[%clk 0:02:44]} 8. d3 {[%clk 0:02:55.6]}
8... Kh8 {[%clk 0:02:43.2]} 9. Rd1 {[%clk 0:02:54.1]} 9... d6 {[%clk 0:02:43.6]}
10. d4 {[%clk 0:02:51.3]} 10... exd4 {[%clk 0:02:43.1]} 11. cxd4 {[%clk
0:02:51.8]} 11... b5 {[%clk 0:02:42.5]} 12. Bb3 {[%clk 0:02:46.7]} 12... Bb7
{[%clk 0:02:42.6]} 13. Nc3 {[%clk 0:02:43.4]} 13... Kg8 {[%clk 0:02:41.2]} 14.
Bg5 {[%clk 0:02:40.8]} 14... h6 {[%clk 0:02:39.7]} 15. Bh4 {[%clk 0:02:38.9]}
15... g5 {[%clk 0:02:40.3]} 16. Bg3 {[%clk 0:02:32.9]} 16... Ng6 {[%clk
0:02:40.9]} 17. e5 {[%clk 0:02:25.2]} 17... b4 {[%clk 0:02:39.2]} 18. Nd5 {[%clk
0:02:20.2]} 18... Re8 {[%clk 0:02:34.4]} 19. Qc4 {[%clk 0:02:12.7]} 19... Na5
{[%clk 0:02:27.8]} 20. Qxb4 {[%clk 0:01:22.9]} 20... Nxb3 {[%clk 0:02:24.5]} 21.
Qxb3 {[%clk 0:01:22.9]} 21... Rb8 {[%clk 0:02:20.9]} 22. Qc4 {[%clk 0:01:19.7]}
1-0

[Event "Early-Titled-Tuesday-Blitz-February-20-2024"]
[Site "Chess.com"]
[Date "2024.02.20"]
[Round "4"]
[White "IM_ArthurDW08"]
[Black "Sina_Movahed"]
[Result "0-1"]
[WhiteElo "2777"]
[BlackElo "2970"]
[TimeControl "180+1"]
[EndTime "8:37:50 PST"]
[Termination "Sina_Movahed won by resignation"]

1. e4 {[%clk 0:03:00.9]} 1... c5 {[%clk 0:02:59.8]} 2. Nf3 {[%clk 0:03:01.4]}
2... d6 {[%clk 0:03:00.4]} 3. d4 {[%clk 0:03:01.1]} 3... cxd4 {[%clk 0:03:01.3]}
4. Nxd4 {[%clk 0:03:01.5]} 4... Nf6 {[%clk 0:03:01.9]} 5. Nc3 {[%clk 0:03:02.2]}
5... g6 {[%clk 0:03:02]} 6. Be3 {[%clk 0:02:57]} 6... a6 {[%clk 0:03:02.4]} 7.
f3 {[%clk 0:02:54.6]} 7... h5 {[%clk 0:03:02.1]} 8. Qd2 {[%clk 0:02:54.8]} 8...
Nbd7 {[%clk 0:03:01.4]} 9. O-O-O {[%clk 0:02:45.8]} 9... b5 {[%clk 0:03:01.2]}
10. Kb1 {[%clk 0:02:40.5]} 10... Bb7 {[%clk 0:03:00.8]} 11. g3 {[%clk
0:02:24.4]} 11... Bg7 {[%clk 0:02:59.7]} 12. h3 {[%clk 0:02:24.5]} 12... Ne5
{[%clk 0:02:53.9]} 13. Be2 {[%clk 0:02:08.5]} 13... Rc8 {[%clk 0:02:25.9]} 14.
g4 {[%clk 0:01:56.7]} 14... Qc7 {[%clk 0:02:14.8]} 15. a3 {[%clk 0:01:35]} 15...
Qb8 {[%clk 0:01:53.7]} 16. g5 {[%clk 0:01:28.5]} 16... Nfd7 {[%clk 0:01:53.6]}
17. f4 {[%clk 0:01:15.8]} 17... Nc4 {[%clk 0:01:52.4]} 18. Bxc4 {[%clk
0:01:14.7]} 18... bxc4 {[%clk 0:01:26]} 19. Rhe1 {[%clk 0:00:55.9]} 19... Nc5
{[%clk 0:01:25.9]} 20. Bg1 {[%clk 0:00:55.5]} 20... O-O {[%clk 0:01:25.7]} 21.
f5 {[%clk 0:00:54.1]} 21... Rfe8 {[%clk 0:01:12.9]} 22. Bh2 {[%clk 0:00:48.2]}
22... Ba8 {[%clk 0:01:08]} 23. Qf2 {[%clk 0:00:41.4]} 23... Qb6 {[%clk
0:00:54.8]} 24. Ka1 {[%clk 0:00:37.2]} 24... Rb8 {[%clk 0:00:54.1]} 0-1

[Event "Early-Titled-Tuesday-Blitz-February-20-2024"]
[Site "Chess.com"]
[Date "2024.02.20"]
[Round "4"]
[White "MAGMAchess02"]
[Black "FLYD"]
[Result "1-0"]
[WhiteElo "2234"]
[BlackElo "1861"]
[TimeControl "180+1"]
[EndTime "8:37:50 PST"]
[Termination "MAGMAchess02 won by resignation"]

1. e4 {[%clk 0:02:56.2]} 1... c6 {[%clk 0:03:00.3]} 2. Nf3 {[%clk 0:02:55.5]}
2... d5 {[%clk 0:03:01.2]} 3. d3 {[%clk 0:02:55.5]} 3... Qc7 {[%clk 0:03:00.3]}
4. Nc3 {[%clk 0:02:52.7]} 4... e6 {[%clk 0:02:52.3]} 5. g3 {[%clk 0:02:45.8]}
5... Nf6 {[%clk 0:02:50.6]} 6. Bg2 {[%clk 0:02:44.9]} 6... Bb4 {[%clk
0:02:47.8]} 7. Qe2 {[%clk 0:02:42.9]} 7... Bxc3+ {[%clk 0:02:44.3]} 8. bxc3
{[%clk 0:02:42.7]} 8... dxe4 {[%clk 0:02:44.7]} 9. dxe4 {[%clk 0:02:42.6]} 9...
O-O {[%clk 0:02:45]} 10. O-O {[%clk 0:02:41.9]} 10... b6 {[%clk 0:02:43.3]} 11.
e5 {[%clk 0:02:39.7]} 11... Nd5 {[%clk 0:02:43]} 12. c4 {[%clk 0:02:39.2]} 12...
Ne7 {[%clk 0:02:42.9]} 13. Bg5 {[%clk 0:02:25.3]} 13... Bb7 {[%clk 0:02:41.8]}
14. h4 {[%clk 0:02:20.6]} 14... h6 {[%clk 0:02:31.2]} 15. Bf4 {[%clk 0:02:13.1]}
15... Nd7 {[%clk 0:02:28.3]} 16. h5 {[%clk 0:02:06.5]} 16... c5 {[%clk
0:02:13.9]} 17. Rfd1 {[%clk 0:02:00.7]} 17... Rfd8 {[%clk 0:02:12.2]} 18. g4
{[%clk 0:01:45.3]} 18... Nc6 {[%clk 0:01:28.6]} 19. c3 {[%clk 0:01:10.6]} 19...
Ba6 {[%clk 0:01:23.5]} 20. g5 {[%clk 0:01:05.6]} 20... hxg5 {[%clk 0:01:18.2]}
21. Nxg5 {[%clk 0:01:06.5]} 21... Ncxe5 {[%clk 0:00:43.4]} 22. Bxa8 {[%clk
0:01:04.5]} 22... Rxa8 {[%clk 0:00:44.3]} 23. Rxd7 {[%clk 0:01:04.1]} 23... Qxd7
{[%clk 0:00:40.3]} 24. Qxe5 {[%clk 0:00:54.7]} 24... Bxc4 {[%clk 0:00:30.5]} 25.
Qe4 {[%clk 0:00:53.5]} 25... Bd3 {[%clk 0:00:29.5]} 26. Qxa8+ {[%clk 0:00:52.3]}
1-0

[Event "Early-Titled-Tuesday-Blitz-February-20-2024"]
[Site "Chess.com"]
[Date "2024.02.20"]
[Round "4"]
[White "Kunalm64"]
[Black "traviscottofficial"]
[Result "1-0"]
[WhiteElo "2522"]
[BlackElo "2743"]
[TimeControl "180+1"]
[EndTime "8:37:51 PST"]
[Termination "Kunalm64 won by resignation"]

1. e4 {[%clk 0:02:59.8]} 1... c6 {[%clk 0:02:59.9]} 2. d4 {[%clk 0:02:59.6]}
2... d5 {[%clk 0:03:00.8]} 3. e5 {[%clk 0:03:00.2]} 3... Bf5 {[%clk 0:03:01.1]}
4. h4 {[%clk 0:02:59.8]} 4... h5 {[%clk 0:02:59.6]} 5. Bd3 {[%clk 0:02:59.7]}
5... Bxd3 {[%clk 0:02:58.1]} 6. Qxd3 {[%clk 0:03:00.6]} 6... e6 {[%clk 0:02:59]}
7. Bg5 {[%clk 0:03:00.1]} 7... Qb6 {[%clk 0:02:59]} 8. Nd2 {[%clk 0:02:59.7]}
8... Nd7 {[%clk 0:02:58.5]} 9. Ngf3 {[%clk 0:02:58.5]} 9... c5 {[%clk 0:02:58]}
10. c4 {[%clk 0:02:58]} 10... Ne7 {[%clk 0:02:55.5]} 11. O-O {[%clk 0:02:50.7]}
11... cxd4 {[%clk 0:02:55.4]} 12. cxd5 {[%clk 0:02:40.1]} 12... Nxd5 {[%clk
0:02:54.5]} 13. Nc4 {[%clk 0:02:38.9]} 13... Qa6 {[%clk 0:02:47.8]} 14. Qxd4
{[%clk 0:02:37.3]} 14... Bc5 {[%clk 0:02:43.1]} 15. Qe4 {[%clk 0:02:36.1]} 15...
Rc8 {[%clk 0:02:21.3]} 16. Ne3 {[%clk 0:02:18.6]} 16... Bxe3 {[%clk 0:02:06.5]}
17. Bxe3 {[%clk 0:02:17.6]} 17... Nxe3 {[%clk 0:01:35.1]} 18. Qxe3 {[%clk
0:02:16.5]} 18... Qb6 {[%clk 0:01:34.3]} 19. Qg5 {[%clk 0:02:15]} 19... g6
{[%clk 0:01:23.9]} 20. Rac1 {[%clk 0:02:13]} 20... O-O {[%clk 0:01:18.3]} 21.
Qh6 {[%clk 0:02:11.9]} 21... Rfe8 {[%clk 0:01:02.2]} 22. Ng5 {[%clk 0:02:10.3]}
22... Nf8 {[%clk 0:01:02.8]} 23. Ne4 {[%clk 0:02:10.5]} 23... f5 {[%clk
0:00:34.6]} 24. Nf6+ {[%clk 0:02:09.4]} 24... Kf7 {[%clk 0:00:34.2]} 25. Qh8
{[%clk 0:02:00.2]} 25... Rxc1 {[%clk 0:00:15.2]} 26. Qg8+ {[%clk 0:01:43.8]}
26... Ke7 {[%clk 0:00:15.2]} 27. Qg7+ {[%clk 0:01:43.8]} 27... Kd8 {[%clk
0:00:15.2]} 28. Rxc1 {[%clk 0:01:44.3]} 28... a6 {[%clk 0:00:10.5]} 29. Nxe8
{[%clk 0:01:33.8]} 1-0

[Event "Early-Titled-Tuesday-Blitz-February-20-2024"]
[Site "Chess.com"]
[Date "2024.02.20"]
[Round "4"]
[White "WilsonPalencia21"]
[Black "Zurability"]
[Result "0-1"]
[WhiteElo "2538"]
[BlackElo "2739"]
[TimeControl "180+1"]
[EndTime "8:37:52 PST"]
[Termination "Zurability won by checkmate"]

1. d4 {[%clk 0:02:49.8]} 1... c5 {[%clk 0:03:00.9]} 2. d5 {[%clk 0:02:49.6]}
2... e5 {[%clk 0:03:00.6]} 3. c4 {[%clk 0:02:49.1]} 3... d6 {[%clk 0:03:01.3]}
4. Nc3 {[%clk 0:02:49.4]} 4... Be7 {[%clk 0:03:01.9]} 5. e4 {[%clk 0:02:49.8]}
5... Bg5 {[%clk 0:03:02.4]} 6. Bxg5 {[%clk 0:02:46.8]} 6... Qxg5 {[%clk
0:03:03.3]} 7. Nf3 {[%clk 0:02:47.2]} 7... Qd8 {[%clk 0:03:02.9]} 8. h3 {[%clk
0:02:47.6]} 8... Nf6 {[%clk 0:03:02.5]} 9. g4 {[%clk 0:02:47]} 9... O-O {[%clk
0:03:02.5]} 10. Bd3 {[%clk 0:02:45.7]} 10... a6 {[%clk 0:03:02.1]} 11. Qe2
{[%clk 0:02:45.4]} 11... b5 {[%clk 0:03:00.3]} 12. cxb5 {[%clk 0:02:45.4]} 12...
axb5 {[%clk 0:03:01.2]} 13. Bxb5 {[%clk 0:02:45.5]} 13... Ba6 {[%clk 0:03:01.5]}
14. O-O {[%clk 0:02:39.4]} 14... Bxb5 {[%clk 0:03:01.5]} 15. Nxb5 {[%clk
0:02:39.1]} 15... Na6 {[%clk 0:03:02.4]} 16. a3 {[%clk 0:02:35.1]} 16... Qb6
{[%clk 0:03:02.5]} 17. Nd2 {[%clk 0:02:33.4]} 17... Rfb8 {[%clk 0:03:02.7]} 18.
a4 {[%clk 0:02:33.5]} 18... Ne8 {[%clk 0:02:59.7]} 19. Nc4 {[%clk 0:02:33.6]}
19... Qd8 {[%clk 0:02:59.3]} 20. f4 {[%clk 0:02:20.4]} 20... exf4 {[%clk
0:02:59.2]} 21. Rxf4 {[%clk 0:02:20]} 21... Nb4 {[%clk 0:02:59.6]} 22. Nc3
{[%clk 0:02:15]} 22... Qe7 {[%clk 0:02:56.7]} 23. Raf1 {[%clk 0:02:12.9]} 23...
f6 {[%clk 0:02:57.1]} 24. g5 {[%clk 0:02:13.3]} 24... fxg5 {[%clk 0:02:52]} 25.
Rf7 {[%clk 0:02:12.1]} 25... Qxf7 {[%clk 0:02:52.2]} 26. Rxf7 {[%clk 0:02:12.6]}
26... Kxf7 {[%clk 0:02:53.1]} 27. e5 {[%clk 0:02:13]} 27... dxe5 {[%clk
0:02:47.4]} 28. Qxe5 {[%clk 0:02:02.7]} 28... Nf6 {[%clk 0:02:39.9]} 29. Nd6+
{[%clk 0:01:59.8]} 29... Kf8 {[%clk 0:02:40.2]} 30. Qe6 {[%clk 0:01:53]} 30...
Ra7 {[%clk 0:02:40.2]} 31. Nc8 {[%clk 0:01:17]} 31... Rd7 {[%clk 0:02:39.1]} 32.
Nb6 {[%clk 0:01:09.6]} 32... Re7 {[%clk 0:02:28.8]} 33. Qd6 {[%clk 0:01:09.7]}
33... Re8 {[%clk 0:02:27.7]} 34. Qxc5 {[%clk 0:01:04.2]} 34... Nd3 {[%clk
0:02:27.4]} 35. Qa3 {[%clk 0:00:30.1]} 35... Kf7 {[%clk 0:02:25.9]} 36. Nc4
{[%clk 0:00:24.9]} 36... Re1+ {[%clk 0:02:23.7]} 37. Kh2 {[%clk 0:00:25.3]}
37... Kg6 {[%clk 0:02:20.6]} 38. Qd6 {[%clk 0:00:14.8]} 38... Rf1 {[%clk
0:02:02]} 39. Kg2 {[%clk 0:00:12.7]} 39... Rf2+ {[%clk 0:02:02]} 40. Kg3 {[%clk
0:00:12.9]} 40... h5 {[%clk 0:01:58.5]} 41. h4 {[%clk 0:00:03.4]} 41... g4
{[%clk 0:01:55.4]} 42. Nb6 {[%clk 0:00:01.5]} 42... Rf3+ {[%clk 0:01:55.4]} 43.
Kg2 {[%clk 0:00:01.8]} 43... Nf4+ {[%clk 0:01:55.9]} 44. Kg1 {[%clk 0:00:02.3]}
44... Re1+ {[%clk 0:01:55.2]} 45. Kh2 {[%clk 0:00:02.8]} 45... g3# {[%clk
0:01:55.8]} 0-1

[Event "Early-Titled-Tuesday-Blitz-February-20-2024"]
[Site "Chess.com"]
[Date "2024.02.20"]
[Round "4"]
[White "fabianvivasz"]
[Black "RedFirePanda"]
[Result "1-0"]
[WhiteElo "2397"]
[BlackElo "2558"]
[TimeControl "180+1"]
[EndTime "8:37:55 PST"]
[Termination "fabianvivasz won by resignation"]

1. e4 {[%clk 0:02:57.4]} 1... d5 {[%clk 0:01:38]} 2. exd5 {[%clk 0:02:37.4]}
2... Qxd5 {[%clk 0:01:38.9]} 3. Nc3 {[%clk 0:02:37.4]} 3... Qd8 {[%clk
0:01:38.9]} 4. Bc4 {[%clk 0:02:35.7]} 4... Nf6 {[%clk 0:01:38.7]} 5. Nf3 {[%clk
0:02:36]} 5... Bf5 {[%clk 0:01:37.4]} 6. Ne5 {[%clk 0:02:35.4]} 6... e6 {[%clk
0:01:34.5]} 7. Qf3 {[%clk 0:02:35.8]} 7... Bg6 {[%clk 0:01:20.2]} 8. Qxb7 {[%clk
0:02:31]} 8... Nbd7 {[%clk 0:01:19.5]} 9. Nc6 {[%clk 0:02:29.5]} 9... Qc8 {[%clk
0:01:12.3]} 10. Ba6 {[%clk 0:02:29.6]} 10... Qxb7 {[%clk 0:01:08.9]} 11. Bxb7
{[%clk 0:02:30.5]} 11... Rb8 {[%clk 0:01:06.3]} 12. Nxb8 {[%clk 0:02:30.2]}
12... Nxb8 {[%clk 0:01:07.2]} 13. d3 {[%clk 0:02:26.1]} 13... Bc5 {[%clk
0:01:03.7]} 14. Bf4 {[%clk 0:02:19.1]} 14... Bb6 {[%clk 0:00:57.5]} 15. Na4
{[%clk 0:02:12.1]} 15... Ba5+ {[%clk 0:00:54.3]} 16. c3 {[%clk 0:02:11.2]} 16...
O-O {[%clk 0:00:49.6]} 17. b4 {[%clk 0:02:10.4]} 17... Bb6 {[%clk 0:00:49.8]}
18. Nxb6 {[%clk 0:02:08.5]} 18... cxb6 {[%clk 0:00:50.7]} 19. O-O-O {[%clk
0:02:03.6]} 19... Nbd7 {[%clk 0:00:42.9]} 20. f3 {[%clk 0:01:59.5]} 20... e5
{[%clk 0:00:39.6]} 21. Bg3 {[%clk 0:01:57.6]} 21... Nh5 {[%clk 0:00:31.6]} 22.
Rhe1 {[%clk 0:01:53.6]} 22... Nxg3 {[%clk 0:00:30.9]} 23. hxg3 {[%clk
0:01:54.5]} 23... f6 {[%clk 0:00:26.8]} 24. f4 {[%clk 0:01:52.7]} 24... exf4
{[%clk 0:00:16.1]} 25. gxf4 {[%clk 0:01:53.6]} 25... Rb8 {[%clk 0:00:16.1]} 26.
Bd5+ {[%clk 0:01:52.3]} 26... Kf8 {[%clk 0:00:16.1]} 27. Be6 {[%clk 0:01:49.1]}
27... Ke7 {[%clk 0:00:09.9]} 28. g4 {[%clk 0:01:42.6]} 28... Kd6 {[%clk
0:00:07.5]} 29. Bxd7 {[%clk 0:01:39.6]} 29... Kxd7 {[%clk 0:00:07.3]} 30. f5
{[%clk 0:01:40.5]} 30... Bf7 {[%clk 0:00:07]} 31. Re4 {[%clk 0:01:41.2]} 31...
Rc8 {[%clk 0:00:05.2]} 32. Kb2 {[%clk 0:01:40.2]} 32... a5 {[%clk 0:00:02.9]}
33. Rde1 {[%clk 0:01:40.2]} 33... Bd5 {[%clk 0:00:01.8]} 34. Rd4 {[%clk
0:01:38.7]} 34... Kd6 {[%clk 0:00:02.7]} 35. c4 {[%clk 0:01:38.2]} 35... axb4
{[%clk 0:00:02.7]} 36. Rxd5+ {[%clk 0:01:38.4]} 1-0

[Event "Early-Titled-Tuesday-Blitz-February-20-2024"]
[Site "Chess.com"]
[Date "2024.02.20"]
[Round "4"]
[White "Bigfish1995"]
[Black "brm72"]
[Result "1-0"]
[WhiteElo "3167"]
[BlackElo "2626"]
[TimeControl "180+1"]
[EndTime "8:37:57 PST"]
[Termination "Bigfish1995 won on time"]

1. e4 {[%clk 0:02:26]} 1... e6 {[%clk 0:02:58.8]} 2. d4 {[%clk 0:02:24.1]} 2...
d5 {[%clk 0:02:58.6]} 3. Nc3 {[%clk 0:02:24.7]} 3... Nf6 {[%clk 0:02:57]} 4. e5
{[%clk 0:02:23.7]} 4... Nfd7 {[%clk 0:02:56.9]} 5. f4 {[%clk 0:02:24.3]} 5... c5
{[%clk 0:02:56.7]} 6. Nf3 {[%clk 0:02:24.8]} 6... Nc6 {[%clk 0:02:56.8]} 7. Be3
{[%clk 0:02:25.3]} 7... a6 {[%clk 0:02:57.2]} 8. a3 {[%clk 0:02:21.9]} 8... b5
{[%clk 0:02:55]} 9. Ne2 {[%clk 0:02:20.1]} 9... cxd4 {[%clk 0:02:25.9]} 10.
Nexd4 {[%clk 0:02:11]} 10... Nxd4 {[%clk 0:02:25.6]} 11. Nxd4 {[%clk 0:02:08.8]}
11... Bb7 {[%clk 0:02:18.1]} 12. Qg4 {[%clk 0:02:00.2]} 12... g6 {[%clk
0:02:12.8]} 13. Bd3 {[%clk 0:01:56.3]} 13... Nc5 {[%clk 0:02:10.4]} 14. h4
{[%clk 0:01:51.2]} 14... Nxd3+ {[%clk 0:02:05]} 15. cxd3 {[%clk 0:01:50.4]}
15... h5 {[%clk 0:02:05.7]} 16. Qe2 {[%clk 0:01:40]} 16... Be7 {[%clk
0:01:59.9]} 17. g3 {[%clk 0:01:38.6]} 17... Rc8 {[%clk 0:01:59.3]} 18. b4 {[%clk
0:01:37.3]} 18... O-O {[%clk 0:01:51]} 19. Kf2 {[%clk 0:01:34.2]} 19... a5
{[%clk 0:01:45.6]} 20. g4 {[%clk 0:01:32.2]} 20... axb4 {[%clk 0:01:35.9]} 21.
gxh5 {[%clk 0:01:31]} 21... Bxh4+ {[%clk 0:00:32.9]} 22. Kg2 {[%clk 0:01:24.2]}
22... Kg7 {[%clk 0:00:13.4]} 23. hxg6 {[%clk 0:01:22.9]} 23... b3 {[%clk
0:00:10.1]} 24. Qg4 {[%clk 0:01:21.5]} 24... Rc2+ {[%clk 0:00:07.9]} 25. Kf3
{[%clk 0:01:21.4]} 25... f5 {[%clk 0:00:01.3]} 26. Qxh4 {[%clk 0:01:16.1]} 1-0

[Event "Early-Titled-Tuesday-Blitz-February-20-2024"]
[Site "Chess.com"]
[Date "2024.02.20"]
[Round "4"]
[White "ChessFanNM"]
[Black "Journey_to_GrandMaster_YT"]
[Result "0-1"]
[WhiteElo "2313"]
[BlackElo "2517"]
[TimeControl "180+1"]
[EndTime "8:37:57 PST"]
[Termination "Journey_to_GrandMaster_YT won by resignation"]

1. Nf3 {[%clk 0:02:59.2]} 1... d6 {[%clk 0:02:59.3]} 2. d4 {[%clk 0:02:46.9]}
2... Nf6 {[%clk 0:02:59.1]} 3. c4 {[%clk 0:02:43]} 3... Nbd7 {[%clk 0:02:59]} 4.
Nc3 {[%clk 0:02:42.9]} 4... e5 {[%clk 0:02:58.8]} 5. e4 {[%clk 0:02:42.4]} 5...
Be7 {[%clk 0:02:58.8]} 6. Be2 {[%clk 0:02:41.6]} 6... O-O {[%clk 0:02:59.3]} 7.
O-O {[%clk 0:02:41.6]} 7... c6 {[%clk 0:02:59.8]} 8. h3 {[%clk 0:02:36.3]} 8...
a6 {[%clk 0:03:00]} 9. a4 {[%clk 0:02:33.9]} 9... a5 {[%clk 0:02:59.7]} 10. Be3
{[%clk 0:02:33.4]} 10... Re8 {[%clk 0:02:58.6]} 11. Qc2 {[%clk 0:02:33]} 11...
Bf8 {[%clk 0:02:57.8]} 12. Rad1 {[%clk 0:02:32.6]} 12... Qc7 {[%clk 0:02:57.8]}
13. Rfe1 {[%clk 0:02:32.2]} 13... exd4 {[%clk 0:02:57.9]} 14. Nxd4 {[%clk
0:02:31.3]} 14... Nc5 {[%clk 0:02:58]} 15. Bf3 {[%clk 0:02:29.5]} 15... Qb6
{[%clk 0:02:44.8]} 16. Bg5 {[%clk 0:02:19.4]} 16... Nfd7 {[%clk 0:02:40.1]} 17.
Nf5 {[%clk 0:02:08.6]} 17... Ne5 {[%clk 0:02:30.9]} 18. Be2 {[%clk 0:01:58.5]}
18... Be6 {[%clk 0:02:17.2]} 19. Nxd6 {[%clk 0:01:41.3]} 19... Bxd6 {[%clk
0:02:16.6]} 20. Rxd6 {[%clk 0:01:40.6]} 20... Nxc4 {[%clk 0:01:51.4]} 21. Nd5
{[%clk 0:01:30.9]} 21... Bxd5 {[%clk 0:01:23.6]} 22. exd5 {[%clk 0:01:13.2]}
22... Nxd6 {[%clk 0:01:20]} 23. Be3 {[%clk 0:01:04.5]} 23... Rxe3 {[%clk
0:01:06.6]} 24. fxe3 {[%clk 0:01:04.2]} 24... cxd5 {[%clk 0:01:06.2]} 25. Bf3
{[%clk 0:01:00.6]} 25... Nce4 {[%clk 0:01:02.3]} 26. Kh1 {[%clk 0:00:52.2]}
26... Rc8 {[%clk 0:00:41.7]} 27. Qd3 {[%clk 0:00:47]} 27... Nf2+ {[%clk
0:00:41.5]} 0-1

[Event "Early-Titled-Tuesday-Blitz-February-20-2024"]
[Site "Chess.com"]
[Date "2024.02.20"]
[Round "4"]
[White "NewBornNow"]
[Black "Njal28"]
[Result "0-1"]
[WhiteElo "2792"]
[BlackElo "2983"]
[TimeControl "180+1"]
[EndTime "8:38:17 PST"]
[Termination "Njal28 won by checkmate"]

1. e4 {[%clk 0:03:00.9]} 1... c5 {[%clk 0:03:00.3]} 2. Nf3 {[%clk 0:03:00.4]}
2... d6 {[%clk 0:03:00.8]} 3. d4 {[%clk 0:03:00.4]} 3... cxd4 {[%clk 0:03:01.7]}
4. Nxd4 {[%clk 0:03:00.5]} 4... Nf6 {[%clk 0:03:02.3]} 5. Bd3 {[%clk 0:03:00.6]}
5... Nc6 {[%clk 0:03:02.2]} 6. Nxc6 {[%clk 0:03:00.1]} 6... bxc6 {[%clk
0:03:03.1]} 7. O-O {[%clk 0:03:00.2]} 7... g6 {[%clk 0:03:03.5]} 8. b3 {[%clk
0:03:00.4]} 8... Bg7 {[%clk 0:03:03.5]} 9. Bb2 {[%clk 0:03:00.5]} 9... O-O
{[%clk 0:03:03.2]} 10. Nc3 {[%clk 0:03:00.7]} 10... a5 {[%clk 0:03:01.9]} 11.
Na4 {[%clk 0:02:59.5]} 11... e5 {[%clk 0:02:54.4]} 12. Qe2 {[%clk 0:02:58.8]}
12... Nh5 {[%clk 0:02:54]} 13. g3 {[%clk 0:02:52.2]} 13... Qg5 {[%clk
0:02:53.5]} 14. Kh1 {[%clk 0:02:46]} 14... Bh3 {[%clk 0:02:43.1]} 15. Rg1 {[%clk
0:02:43.9]} 15... f5 {[%clk 0:02:34.3]} 16. exf5 {[%clk 0:02:25.7]} 16... gxf5
{[%clk 0:02:32.8]} 17. f3 {[%clk 0:02:18.7]} 17... Rae8 {[%clk 0:02:28]} 18. Qf2
{[%clk 0:01:54.2]} 18... e4 {[%clk 0:02:25.5]} 19. Be2 {[%clk 0:01:50.9]} 19...
d5 {[%clk 0:02:04.4]} 20. f4 {[%clk 0:01:43]} 20... Qg6 {[%clk 0:02:04.7]} 21.
Bxg7 {[%clk 0:01:37.8]} 21... Nxg7 {[%clk 0:02:05.6]} 22. Nc5 {[%clk 0:01:31.4]}
22... e3 {[%clk 0:01:49.9]} 23. Qe1 {[%clk 0:01:25.4]} 23... Qd6 {[%clk
0:01:47.3]} 24. Qxa5 {[%clk 0:01:21.6]} 24... Ne6 {[%clk 0:01:40.9]} 25. Nxe6
{[%clk 0:01:17.4]} 25... Qxe6 {[%clk 0:01:41.2]} 26. Bf3 {[%clk 0:01:15.9]}
26... e2 {[%clk 0:01:29.7]} 27. Rae1 {[%clk 0:01:00.8]} 27... Qe3 {[%clk
0:01:26.1]} 28. Bg2 {[%clk 0:01:00.3]} 28... Bg4 {[%clk 0:01:20.4]} 29. Qa6
{[%clk 0:00:52.2]} 29... Re6 {[%clk 0:01:18.5]} 30. Qd3 {[%clk 0:00:48.2]} 30...
Qc5 {[%clk 0:01:05.8]} 31. h3 {[%clk 0:00:27.9]} 31... Qf2 {[%clk 0:00:55]} 32.
hxg4 {[%clk 0:00:18.4]} 32... Rh6+ {[%clk 0:00:54.8]} 33. Bh3 {[%clk 0:00:17.9]}
33... Rxh3# {[%clk 0:00:55.2]} 0-1

[Event "Early-Titled-Tuesday-Blitz-February-20-2024"]
[Site "Chess.com"]
[Date "2024.02.20"]
[Round "4"]
[White "a-z30"]
[Black "MasterofMasters2006"]
[Result "0-1"]
[WhiteElo "2490"]
[BlackElo "2297"]
[TimeControl "180+1"]
[EndTime "8:38:18 PST"]
[Termination "MasterofMasters2006 won on time"]

1. d3 {[%clk 0:02:58]} 1... d5 {[%clk 0:02:59]} 2. Nf3 {[%clk 0:02:58.5]} 2...
Nf6 {[%clk 0:02:59.1]} 3. g3 {[%clk 0:02:58.9]} 3... g6 {[%clk 0:02:52.6]} 4.
Bg2 {[%clk 0:02:59.1]} 4... Bg7 {[%clk 0:02:52.8]} 5. O-O {[%clk 0:03:00]} 5...
O-O {[%clk 0:02:52.3]} 6. c4 {[%clk 0:03:00.7]} 6... dxc4 {[%clk 0:02:51.5]} 7.
dxc4 {[%clk 0:03:00.4]} 7... Qxd1 {[%clk 0:02:52.4]} 8. Rxd1 {[%clk 0:02:59.9]}
8... c6 {[%clk 0:02:53]} 9. Nd4 {[%clk 0:02:34.4]} 9... Rd8 {[%clk 0:02:42.8]}
10. Nc3 {[%clk 0:02:33.4]} 10... Na6 {[%clk 0:02:34.9]} 11. Bf4 {[%clk
0:02:04.7]} 11... Nh5 {[%clk 0:01:48.7]} 12. Nxc6 {[%clk 0:01:11.3]} 12... Rxd1+
{[%clk 0:01:46.3]} 13. Rxd1 {[%clk 0:01:10.2]} 13... bxc6 {[%clk 0:01:45.9]} 14.
Rd8+ {[%clk 0:01:07.1]} 14... Bf8 {[%clk 0:01:45.4]} 15. Bh6 {[%clk 0:00:36]}
15... Ng7 {[%clk 0:01:45]} 16. Bxc6 {[%clk 0:00:34.9]} 16... Rb8 {[%clk
0:01:36.1]} 17. Nd5 {[%clk 0:00:32.9]} 17... Be6 {[%clk 0:01:15.1]} 18. Nxe7+
{[%clk 0:00:19.1]} 18... Kh8 {[%clk 0:01:14.8]} 19. Rxf8+ {[%clk 0:00:16]} 19...
Rxf8 {[%clk 0:01:13.1]} 20. b3 {[%clk 0:00:13.3]} 20... Nb4 {[%clk 0:01:07.8]}
21. Bd5 {[%clk 0:00:07.3]} 21... Bxd5 {[%clk 0:01:04]} 22. Nxd5 {[%clk
0:00:06.8]} 22... Nxd5 {[%clk 0:00:55.8]} 23. cxd5 {[%clk 0:00:07.7]} 23... Re8
{[%clk 0:00:52.8]} 24. Kf1 {[%clk 0:00:04.6]} 24... Re5 {[%clk 0:00:50.5]} 0-1